bitfinex-derivatives/quotes_BTCF0:USTF0_20251228
["timestamp","ask_amount","ask_price","bid_price","bid_amount"]
[1766908433501,0.02589231,87773.0,87766.0,0.0114029]
[1766908433704,0.02589231,87772.0,87766.0,0.0114029]
[1766908433907,0.02589231,87771.0,87766.0,0.0114029]
[1766908434105,0.05704,87776.0,87766.0,0.0114029]
[1766908434407,0.0258923,87775.0,87766.0,0.0114029]
[1766908434594,0.0258923,87774.0,87766.0,0.0114029]
[1766908434798,0.0258923,87773.0,87766.0,0.0114029]
[1766908434993,0.0258923,87772.0,87763.0,0.0114034]
[1766908435199,0.0258923,87771.0,87760.0,0.10849469]
[1766908435398,0.05704,87776.0,87760.0,0.10849469]
[1766908435607,0.02589226,87775.0,87760.0,0.10849469]
[1766908435807,0.02589226,87774.0,87760.0,0.10849469]
[1766908436008,0.02589226,87773.0,87760.0,0.10849469]
[1766908436208,0.02589226,87772.0,87760.0,0.10849469]
[1766908436409,0.02589226,87771.0,87760.0,0.10849469]
[1766908436709,0.05704,87776.0,87760.0,0.10849469]
[1766908437012,0.02589216,87775.0,87762.0,0.0114035]
[1766908437313,0.02589216,87774.0,87762.0,0.0114035]
[1766908437510,0.02589216,87773.0,87762.0,0.0114035]
[1766908437703,0.02589216,87772.0,87762.0,0.0114035]
[1766908437903,0.02589216,87771.0,87762.0,0.0114035]
[1766908438202,0.05704,87776.0,87762.0,0.0114035]
[1766908438402,0.02589214,87775.0,87762.0,0.0114035]
[1766908438606,0.02589214,87774.0,87762.0,0.0114035]
[1766908438808,0.02589214,87773.0,87762.0,0.0114035]
[1766908439107,0.02589214,87772.0,87762.0,0.0114035]
[1766908439302,0.02589214,87771.0,87762.0,0.0114035]
[1766908439508,0.05704,87776.0,87762.0,0.0114035]
[1766908439700,0.02589212,87775.0,87762.0,0.0114035]
[1766908439904,0.02589212,87774.0,87762.0,0.0114035]
[1766908440108,0.02589212,87773.0,87762.0,0.0114035]
[1766908440308,0.02589212,87772.0,87762.0,0.0114035]
[1766908440507,0.02589212,87771.0,87762.0,0.0114035]
[1766908440710,0.05704,87776.0,87762.0,0.0114035]
[1766908440912,0.02589213,87775.0,87762.0,0.0114035]
[1766908441209,0.02589213,87774.0,87762.0,0.0114035]
[1766908441409,0.02589213,87773.0,87762.0,0.0114035]
[1766908441609,0.02589213,87772.0,87762.0,0.0114035]
[1766908441811,0.02589213,87771.0,87762.0,0.0114035]
[1766908442009,0.05704,87776.0,87762.0,0.0114035]
[1766908442211,0.02589211,87775.0,87762.0,0.0114035]
[1766908442410,0.02589211,87774.0,87762.0,0.0114035]
[1766908442610,0.02589211,87773.0,87762.0,0.0114035]
[1766908442812,0.02589211,87772.0,87762.0,0.0114035]
[1766908443005,0.02589211,87771.0,87762.0,0.0114035]
[1766908443314,0.05704,87776.0,87762.0,0.0114035]
[1766908443518,0.02589205,87775.0,87762.0,0.0114035]
[1766908443712,0.02589205,87774.0,87762.0,0.0114035]
[1766908443912,0.02589205,87773.0,87762.0,0.0114035]
[1766908444114,0.02589205,87772.0,87762.0,0.0114035]
[1766908444318,0.02589205,87771.0,87761.0,0.05704]
[1766908444508,0.05704,87776.0,87761.0,0.05704]
[1766908444708,0.02589207,87775.0,87762.0,0.0114035]
[1766908444908,0.02589207,87774.0,87762.0,0.0114035]
[1766908445112,0.02589207,87773.0,87762.0,0.0114035]
[1766908445312,0.02589207,87772.0,87762.0,0.0114035]
[1766908445513,0.02589207,87771.0,87762.0,0.0114035]
[1766908445713,0.05704,87776.0,87762.0,0.0114035]
[1766908445914,0.025892,87775.0,87762.0,0.0114035]
[1766908446114,0.025892,87774.0,87762.0,0.0114035]
[1766908446314,0.025892,87773.0,87762.0,0.0114035]
[1766908446514,0.025892,87772.0,87762.0,0.0114035]
[1766908446715,0.025892,87771.0,87762.0,0.0114035]
[1766908446916,0.05704,87776.0,87762.0,0.0114035]
[1766908447117,0.02589196,87775.0,87762.0,0.0114035]
[1766908447414,0.02589196,87774.0,87762.0,0.0114035]
[1766908447615,0.02589196,87773.0,87762.0,0.0114035]
[1766908447815,0.02589196,87772.0,87762.0,0.0114035]
[1766908448020,0.02589196,87771.0,87762.0,0.0114035]
[1766908448221,0.05704,87776.0,87762.0,0.0114035]
[1766908448421,0.02589392,87775.0,87762.0,0.0114035]
[1766908448623,0.02589392,87774.0,87762.0,0.0114035]
[1766908448824,0.02589392,87773.0,87762.0,0.0114035]
[1766908449023,0.02589392,87772.0,87762.0,0.0114035]
[1766908449321,0.02589392,87771.0,87762.0,0.0114035]
[1766908449522,0.05704,87776.0,87762.0,0.0114035]
[1766908449725,0.02589387,87775.0,87762.0,0.0114035]
[1766908449920,0.02589387,87774.0,87762.0,0.0114035]
[1766908450119,0.02589387,87773.0,87762.0,0.0114035]
[1766908450321,0.02589387,87772.0,87762.0,0.0114035]
[1766908450521,0.02589387,87771.0,87764.0,0.0114032]
[1766908450720,0.05704,87776.0,87764.0,0.0114032]
[1766908450921,0.02589382,87775.0,87764.0,0.0114032]
[1766908451122,0.02589382,87774.0,87764.0,0.0114032]
[1766908451325,0.02589382,87773.0,87764.0,0.0114032]
[1766908451522,0.02589382,87772.0,87764.0,0.0114032]
[1766908451724,0.02589382,87771.0,87766.0,0.0114029]
[1766908451924,0.05704,87776.0,87766.0,0.0114029]
[1766908452231,0.0258938,87775.0,87766.0,0.0114029]
[1766908452522,0.0258938,87774.0,87766.0,0.0114029]
[1766908452721,0.0258938,87773.0,87766.0,0.0114029]
[1766908452920,0.0258938,87772.0,87766.0,0.0114029]
[1766908453122,0.0258938,87771.0,87766.0,0.0114029]
[1766908453427,0.05704,87776.0,87761.0,0.05704]
[1766908453625,0.02589379,87775.0,87761.0,0.05704]
[1766908453925,0.02589379,87774.0,87761.0,0.05704]
[1766908454125,0.02589379,87773.0,87761.0,0.05704]
[1766908454326,0.02589379,87772.0,87766.0,0.0114029]
[1766908454525,0.02589379,87771.0,87766.0,0.0114029]
[1766908454720,0.05704,87776.0,87761.0,0.05704]
[1766908454921,0.0258938,87775.0,87761.0,0.05704]
[1766908455119,0.0258938,87774.0,87761.0,0.05704]
[1766908455418,0.0258938,87773.0,87761.0,0.05704]
[1766908455618,0.0258938,87772.0,87761.0,0.05704]
[1766908455819,0.0258938,87771.0,87761.0,0.05704]
[1766908456126,0.05704,87776.0,87764.0,0.0114032]
[1766908456325,0.02589383,87775.0,87764.0,0.0114032]
[1766908456512,0.02589383,87774.0,87764.0,0.0114032]
[1766908456825,0.02589383,87773.0,87764.0,0.0114032]
[1766908457027,0.02589383,87772.0,87764.0,0.0114032]
[1766908457229,0.02589383,87771.0,87764.0,0.0114032]
[1766908457429,0.05704,87776.0,87764.0,0.0114032]
[1766908457628,0.02589385,87775.0,87764.0,0.0114032]
[1766908457826,0.05704,87776.0,87764.0,0.0114032]
[1766908457827,0.02589385,87774.0,87764.0,0.0114032]
[1766908458027,0.02589385,87773.0,87764.0,0.0114032]
[1766908458228,0.02589385,87772.0,87764.0,0.0114032]
[1766908458423,0.02589385,87771.0,87764.0,0.0114032]
[1766908458624,0.05704,87776.0,87764.0,0.0114032]
[1766908458828,0.02589388,87775.0,87764.0,0.0114032]
[1766908459030,0.02589388,87774.0,87764.0,0.0114032]
[1766908459225,0.02589388,87773.0,87764.0,0.0114032]
[1766908459426,0.02589388,87772.0,87764.0,0.0114032]
[1766908459723,0.02589388,87771.0,87764.0,0.0114032]
[1766908459924,0.05704,87776.0,87764.0,0.0114032]
[1766908460131,0.02589393,87775.0,87764.0,0.0114032]
[1766908460431,0.02589393,87774.0,87761.0,0.05704]
[1766908460629,0.02589393,87773.0,87761.0,0.0684436]
[1766908460831,0.02589393,87772.0,87761.0,0.0684436]
[1766908461030,0.02589393,87771.0,87761.0,0.0684436]
[1766908461230,0.05704,87776.0,87761.0,0.0684436]
[1766908461432,0.02589405,87775.0,87761.0,0.0684436]
[1766908461627,0.02589405,87774.0,87761.0,0.0684436]
[1766908461828,0.02589405,87773.0,87763.0,0.0114033]
[1766908462128,0.02589405,87772.0,87763.0,0.0114033]
[1766908462431,0.02589405,87771.0,87763.0,0.0114033]
[1766908462630,0.05704,87776.0,87763.0,0.0114033]
[1766908462831,0.02589414,87775.0,87763.0,0.0114033]
[1766908463033,0.02589414,87774.0,87763.0,0.0114033]
[1766908463226,0.02589414,87773.0,87763.0,0.0114033]
[1766908463428,0.02589414,87772.0,87763.0,0.0114033]
[1766908463625,0.02589414,87771.0,87763.0,0.0114033]
[1766908463825,0.05704,87776.0,87763.0,0.0114033]
[1766908464030,0.02589424,87775.0,87763.0,0.0114033]
[1766908464229,0.02589424,87774.0,87763.0,0.0114033]
[1766908464424,0.02589424,87773.0,87763.0,0.0114033]
[1766908464630,0.02589424,87772.0,87761.0,0.05704]
[1766908464926,0.02589424,87771.0,87761.0,0.05704]
[1766908465128,0.02589424,87770.0,87761.0,0.05704]
[1766908465329,0.05704,87776.0,87761.0,0.05704]
[1766908465627,0.02589438,87775.0,87761.0,0.05704]
[1766908465927,0.02589438,87774.0,87761.0,0.05704]
[1766908466232,0.02589438,87773.0,87761.0,0.05704]
[1766908466531,0.02589438,87772.0,87762.0,0.0114035]
[1766908466732,0.02589438,87771.0,87762.0,0.0114035]
[1766908466931,0.02589438,87770.0,87762.0,0.0114035]
[1766908467130,0.05704,87776.0,87762.0,0.0114035]
[1766908467330,0.02589421,87775.0,87762.0,0.0114035]
[1766908467532,0.02589421,87774.0,87762.0,0.0114035]
[1766908467732,0.02589421,87773.0,87762.0,0.0114035]
[1766908467929,0.02589421,87772.0,87762.0,0.0114035]
[1766908468130,0.02589421,87771.0,87762.0,0.0114035]
[1766908468333,0.02589421,87770.0,87762.0,0.0114035]
[1766908468632,0.05704,87776.0,87762.0,0.0114035]
[1766908468833,0.02589419,87775.0,87762.0,0.0114035]
[1766908469034,0.02589419,87774.0,87762.0,0.0114035]
[1766908469334,0.02589419,87773.0,87762.0,0.0114035]
[1766908469535,0.02589419,87772.0,87762.0,0.0114035]
[1766908469736,0.02589419,87771.0,87762.0,0.0114035]
[1766908470033,0.02589419,87770.0,87762.0,0.0114035]
[1766908470236,0.05704,87776.0,87762.0,0.0114035]
[1766908470435,0.02589408,87775.0,87762.0,0.0114035]
[1766908470634,0.02589408,87774.0,87762.0,0.0114035]
[1766908470834,0.02589408,87773.0,87762.0,0.0114035]
[1766908471035,0.02589408,87772.0,87762.0,0.0114035]
[1766908471238,0.02589408,87771.0,87762.0,0.0114035]
[1766908471438,0.02589408,87770.0,87762.0,0.0114035]
[1766908471641,0.05704,87776.0,87762.0,0.0114035]
[1766908471835,0.02589407,87775.0,87762.0,0.0114035]
[1766908472035,0.02589407,87774.0,87762.0,0.0114035]
[1766908472341,0.02589407,87773.0,87762.0,0.0114035]
[1766908472539,0.02589407,87772.0,87762.0,0.0114035]
[1766908472743,0.02589407,87771.0,87762.0,0.0114035]
[1766908472933,0.02589407,87770.0,87762.0,0.0114035]
[1766908473134,0.05704,87776.0,87762.0,0.0114035]
[1766908473334,0.02589403,87775.0,87762.0,0.0114035]
[1766908473633,0.02589403,87774.0,87762.0,0.0114035]
[1766908473935,0.02589403,87773.0,87762.0,0.0114035]
[1766908474134,0.02589403,87772.0,87762.0,0.0114035]
[1766908474336,0.02589403,87771.0,87762.0,0.0114035]
[1766908474537,0.02589403,87770.0,87762.0,0.0114035]
[1766908474736,0.05704,87776.0,87762.0,0.0114035]
[1766908474941,0.02589404,87775.0,87762.0,0.0114035]
[1766908475139,0.02589404,87774.0,87762.0,0.0114035]
[1766908475343,0.02589404,87773.0,87762.0,0.0114035]
[1766908475542,0.02589404,87772.0,87762.0,0.0114035]
[1766908475749,0.02589404,87771.0,87762.0,0.0114035]
[1766908475941,0.02589404,87770.0,87762.0,0.0114035]
[1766908476240,0.05704,87776.0,87762.0,0.0114035]
[1766908476440,0.02589399,87775.0,87762.0,0.0114035]
[1766908476643,0.02589399,87774.0,87762.0,0.0114035]
[1766908476846,0.02589399,87773.0,87762.0,0.0114035]
[1766908477145,0.02589399,87772.0,87762.0,0.0114035]
[1766908477346,0.02589399,87771.0,87762.0,0.0114035]
[1766908477647,0.02589399,87770.0,87762.0,0.0114035]
[1766908477838,0.05704,87776.0,87762.0,0.0114035]
[1766908478345,0.0684418,87776.0,87761.0,0.0264435]
[1766908478544,0.0684418,87776.0,87762.0,0.02104]
[1766908478739,0.0684418,87776.0,87762.0,0.00604]
[1766908478946,0.0684418,87776.0,87762.0,4e-05]
[1766908481458,0.05704,87776.0,87762.0,4e-05]
[1766908481853,0.05704,87776.0,87763.0,0.0114034]
[1766908485860,0.05704,87776.0,87765.0,0.0114031]
[1766908489763,0.02577268,87775.0,87765.0,0.0114031]
[1766908489963,0.02577268,87774.0,87765.0,0.0114031]
[1766908490164,0.02577268,87773.0,87765.0,0.0114031]
[1766908490362,0.02577268,87772.0,87765.0,0.0114031]
[1766908490562,0.01582499,87771.0,87765.0,0.0114031]
[1766908490763,0.05704,87776.0,87765.0,0.0114031]
[1766908493861,0.05704,87776.0,87762.0,0.0114035]
[1766908494063,0.05704,87776.0,87760.0,0.00017089]
[1766908494257,0.05704,87776.0,87764.0,0.0054032]
[1766908494456,0.05704,87776.0,87757.0,0.09692]
[1766908495267,0.05704,87776.0,87763.0,0.0114033]
[1766908495459,0.05704,87776.0,87763.0,0.00622826]
[1766908501274,0.05704,87776.0,87765.0,0.0114031]
[1766908502671,0.02568398,87775.0,87765.0,0.0114031]
[1766908502971,0.02568398,87774.0,87765.0,0.0114031]
[1766908503171,0.02568398,87773.0,87765.0,0.0114031]
[1766908503474,0.02568398,87772.0,87765.0,0.0114031]
[1766908503773,0.02568398,87771.0,87765.0,0.0114031]
[1766908503962,0.02568398,87770.0,87765.0,0.0114031]
[1766908504163,0.05704,87776.0,87765.0,0.0114031]
[1766908504363,0.025684,87775.0,87765.0,0.0114031]
[1766908504665,0.025684,87774.0,87765.0,0.0114031]
[1766908504863,0.025684,87773.0,87765.0,0.0114031]
[1766908505162,0.025684,87772.0,87765.0,0.0114031]
[1766908505363,0.025684,87771.0,87765.0,0.0114031]
[1766908505564,0.05704,87776.0,87765.0,0.0114031]
[1766908517483,0.02545773,87775.0,87765.0,0.0114031]
[1766908517680,0.02545773,87774.0,87765.0,0.0114031]
[1766908517878,0.02545773,87773.0,87765.0,0.0114031]
[1766908518079,0.02545773,87772.0,87765.0,0.0114031]
[1766908518279,0.02545773,87771.0,87765.0,0.0114031]
[1766908518480,0.05704,87776.0,87765.0,0.0114031]
[1766908518680,0.02545772,87775.0,87765.0,0.0114031]
[1766908518884,0.02545772,87774.0,87765.0,0.0114031]
[1766908519085,0.02545772,87773.0,87765.0,0.0114031]
[1766908519385,0.02545772,87772.0,87765.0,0.0114031]
[1766908519583,0.02545772,87771.0,87765.0,0.0114031]
[1766908519885,0.05704,87776.0,87765.0,0.0114031]
[1766908520085,0.02545771,87775.0,87765.0,0.0114031]
[1766908520285,0.02545771,87774.0,87765.0,0.0114031]
[1766908520485,0.02545771,87773.0,87765.0,0.0114031]
[1766908520686,0.02545771,87772.0,87765.0,0.0114031]
[1766908520886,0.02545771,87771.0,87765.0,0.0114031]
[1766908521186,0.05704,87776.0,87765.0,0.0114031]
[1766908521386,0.0254577,87775.0,87765.0,0.0114031]
[1766908521586,0.0254577,87774.0,87765.0,0.0114031]
[1766908521777,0.0254577,87773.0,87765.0,0.0114031]
[1766908521980,0.0254577,87772.0,87765.0,0.0114031]
[1766908522189,0.0254577,87771.0,87765.0,0.0114031]
[1766908522492,0.05704,87776.0,87765.0,0.0114031]
[1766908522682,0.0254577,87775.0,87765.0,0.0114031]
[1766908522883,0.0254577,87774.0,87765.0,0.0114031]
[1766908523083,0.0254577,87773.0,87765.0,0.0114031]
[1766908523286,0.0254577,87772.0,87765.0,0.0114031]
[1766908523485,0.0254577,87771.0,87765.0,0.0114031]
[1766908523685,0.05704,87776.0,87765.0,0.0114031]
[1766908523887,0.02545769,87775.0,87765.0,0.0114031]
[1766908524086,0.02545769,87774.0,87765.0,0.0114031]
[1766908524388,0.02545769,87773.0,87765.0,0.0114031]
[1766908524693,0.02545769,87772.0,87765.0,0.0114031]
[1766908524892,0.01569135,87771.0,87765.0,0.0114031]
[1766908525192,0.04615883,87776.0,87765.0,0.0114031]
[1766908529898,0.04615883,87776.0,87762.0,0.0114035]
[1766908536806,0.025416,87775.0,87762.0,0.0114035]
[1766908537011,0.025416,87774.0,87762.0,0.0114035]
[1766908537305,0.025416,87773.0,87762.0,0.0114035]
[1766908537505,0.025416,87772.0,87762.0,0.0114035]
[1766908537718,0.025416,87771.0,87762.0,0.0114035]
[1766908537919,0.04615883,87776.0,87762.0,0.0114035]
[1766908538115,0.02542561,87775.0,87762.0,0.0114035]
[1766908538315,0.02542561,87774.0,87764.0,0.0114032]
[1766908538517,0.02542561,87773.0,87761.0,0.00017089]
[1766908538717,0.02542561,87772.0,87764.0,0.0114032]
[1766908538918,0.02542561,87771.0,87756.0,0.05704]
[1766908539218,0.04615883,87776.0,87756.0,0.05704]
[1766908539411,0.02542561,87775.0,87756.0,0.05704]
[1766908539612,0.02542561,87774.0,87757.0,0.00017089]
[1766908539812,0.02542561,87773.0,87757.0,0.00017089]
[1766908540012,0.02542561,87772.0,87757.0,0.00017089]
[1766908540211,0.02542561,87771.0,87764.0,0.0114032]
[1766908540407,0.04615883,87776.0,87764.0,0.0114032]
[1766908540610,0.02542561,87775.0,87764.0,0.0114032]
[1766908540809,0.02542561,87774.0,87764.0,0.0114032]
[1766908541109,0.02542561,87773.0,87764.0,0.0114032]
[1766908541308,0.02542561,87772.0,87764.0,0.0114032]
[1766908541508,0.02542561,87771.0,87764.0,0.0114032]
[1766908541715,0.04615883,87776.0,87764.0,0.0114032]
[1766908541918,0.02542561,87775.0,87764.0,0.0114032]
[1766908542216,0.02542561,87774.0,87764.0,0.0114032]
[1766908542420,0.02542561,87773.0,87764.0,0.0114032]
[1766908542610,0.02542561,87772.0,87764.0,0.0114032]
[1766908542811,0.02542561,87771.0,87764.0,0.0114032]
[1766908543016,0.04615883,87776.0,87764.0,0.0114032]
[1766908543218,0.02542561,87775.0,87764.0,0.0114032]
[1766908543417,0.02542561,87774.0,87764.0,0.0114032]
[1766908543617,0.02542561,87773.0,87764.0,0.0114032]
[1766908543820,0.02542561,87772.0,87764.0,0.0114032]
[1766908544119,0.02542561,87771.0,87764.0,0.0114032]
[1766908544320,0.04615883,87776.0,87764.0,0.0114032]
[1766908544521,0.02542562,87775.0,87764.0,0.0114032]
[1766908544820,0.02542562,87774.0,87764.0,0.0114032]
[1766908545017,0.02542562,87773.0,87764.0,0.0114032]
[1766908545221,0.02542562,87772.0,87764.0,0.0114032]
[1766908545416,0.02542562,87771.0,87764.0,0.0114032]
[1766908545617,0.04615883,87776.0,87764.0,0.0114032]
[1766908545820,0.02542562,87775.0,87764.0,0.0114032]
[1766908546018,0.02542562,87774.0,87764.0,0.0114032]
[1766908546223,0.02542562,87773.0,87764.0,0.0114032]
[1766908546422,0.02542562,87772.0,87764.0,0.0114032]
[1766908546624,0.02542562,87771.0,87764.0,0.0114032]
[1766908546824,0.04615883,87776.0,87764.0,0.0114032]
[1766908547024,0.02542561,87775.0,87764.0,0.0114032]
[1766908547219,0.02542561,87774.0,87764.0,0.0114032]
[1766908547416,0.02542561,87773.0,87764.0,0.0114032]
[1766908547620,0.02542561,87772.0,87764.0,0.0114032]
[1766908547921,0.02542561,87771.0,87764.0,0.0114032]
[1766908548123,0.04615883,87776.0,87764.0,0.0114032]
[1766908548327,0.02542561,87775.0,87764.0,0.0114032]
[1766908548620,0.02542561,87774.0,87764.0,0.0114032]
[1766908548822,0.02542561,87773.0,87764.0,0.0114032]
[1766908549022,0.02542561,87772.0,87764.0,0.0114032]
[1766908549222,0.04615883,87776.0,87764.0,0.0114032]
[1766908549223,0.01508132,87771.0,87764.0,0.0114032]
[1766908549428,0.04615883,87776.0,87764.0,0.0114032]
[1766908561332,0.02538085,87775.0,87764.0,0.0114032]
[1766908561536,0.02538085,87774.0,87764.0,0.0114032]
[1766908561831,0.02538085,87773.0,87764.0,0.0114032]
[1766908562032,0.02538085,87772.0,87764.0,0.0114032]
[1766908562227,0.02538085,87771.0,87764.0,0.0114032]
[1766908562425,0.0358556,87776.0,87764.0,0.0114032]
[1766908562624,0.02538085,87775.0,87764.0,0.0114032]
[1766908562825,0.02538085,87774.0,87764.0,0.0114032]
[1766908563131,0.02538085,87773.0,87764.0,0.0114032]
[1766908563424,0.02538085,87772.0,87764.0,0.0114032]
[1766908563623,0.02538085,87771.0,87764.0,0.0114032]
[1766908563824,0.0358556,87776.0,87764.0,0.0114032]
[1766908564032,0.02538085,87775.0,87764.0,0.0114032]
[1766908564233,0.02538085,87774.0,87764.0,0.0114032]
[1766908564531,0.02538085,87773.0,87764.0,0.0114032]
[1766908564728,0.02538085,87772.0,87764.0,0.0114032]
[1766908564928,0.02538085,87771.0,87764.0,0.0114032]
[1766908565133,0.0358556,87776.0,87764.0,0.0114032]
[1766908565336,0.02538084,87775.0,87764.0,0.0114032]
[1766908565532,0.02538084,87774.0,87764.0,0.0114032]
[1766908565834,0.02538084,87773.0,87766.0,0.011403]
[1766908566133,0.02538084,87772.0,87756.0,0.053811]
[1766908566332,0.02538084,87771.0,87756.0,0.053811]
[1766908566532,0.0358556,87776.0,87756.0,0.053811]
[1766908566735,0.02538074,87775.0,87756.0,0.053811]
[1766908567036,0.02538074,87774.0,87757.0,0.00011392]
[1766908567234,0.02538074,87773.0,87765.0,0.0114031]
[1766908567431,0.02538074,87772.0,87765.0,0.0114031]
[1766908567631,0.02538074,87771.0,87765.0,0.0114031]
[1766908567826,0.0358556,87776.0,87765.0,0.00555847]
[1766908568026,0.02543137,87775.0,87765.0,0.00555847]
[1766908568226,0.02543137,87774.0,87765.0,0.00555847]
[1766908568428,0.02543137,87773.0,87765.0,0.00555847]
[1766908568622,0.02543137,87772.0,87765.0,0.00555847]
[1766908568828,0.02543137,87771.0,87765.0,0.00555847]
[1766908569023,0.0358556,87776.0,87765.0,0.00555847]
[1766908569230,0.02543136,87775.0,87765.0,0.00555847]
[1766908569436,0.02543136,87774.0,87765.0,0.00555847]
[1766908569636,0.02543136,87773.0,87765.0,0.00555847]
[1766908569827,0.02543136,87772.0,87765.0,0.00555847]
[1766908570027,0.02543136,87771.0,87765.0,0.00555847]
[1766908570227,0.0358556,87776.0,87765.0,0.00555847]
[1766908570431,0.02543132,87775.0,87765.0,0.00555847]
[1766908570631,0.02543132,87774.0,87765.0,0.00555847]
[1766908570827,0.02543132,87773.0,87765.0,0.00555847]
[1766908571028,0.02543132,87772.0,87765.0,0.00555847]
[1766908571236,0.01568625,87771.0,87765.0,0.00555847]
[1766908571536,0.0358556,87776.0,87765.0,0.00555847]
[1766908581540,0.0358556,87776.0,87768.0,0.0114027]
[1766908583326,0.0253405,87775.0,87768.0,0.0114027]
[1766908583531,0.0253405,87774.0,87768.0,0.0114027]
[1766908583732,0.0253405,87773.0,87768.0,0.0114027]
[1766908583931,0.01557457,87772.0,87768.0,0.0114027]
[1766908584135,0.0358556,87776.0,87768.0,0.0114027]
[1766908590346,0.0358556,87776.0,87770.0,0.0114024]
[1766908590548,0.0358556,87776.0,87758.0,0.00614593]
[1766908591247,0.0358556,87776.0,87770.0,0.0114024]
[1766908596157,0.02528991,87775.0,87770.0,0.0114024]
[1766908596456,0.02528991,87774.0,87770.0,0.0114024]
[1766908596647,1e-08,87773.0,87770.0,0.0114024]
[1766908596847,0.0358556,87776.0,87770.0,0.0114024]
[1766908598455,0.05704,87775.0,87772.0,0.0114022]
[1766908598856,0.05704,87774.0,87772.0,0.0114022]
[1766908601970,0.05704,87775.0,87772.0,0.0114022]
[1766908602571,0.07014176,87775.0,87772.0,0.0114022]
[1766908602771,0.07014176,87775.0,87769.0,0.0114025]
[1766908602971,0.05704,87775.0,87769.0,0.0114025]
[1766908608172,0.05704,87775.0,87769.0,0.0054025]
[1766908608378,0.05704,87775.0,87761.0,0.01310215]
[1766908608578,0.05704,87775.0,87757.0,0.00011392]
[1766908609182,0.05704,87775.0,87769.0,0.0114026]
[1766908612676,0.02511608,87774.0,87769.0,0.0114026]
[1766908612878,8e-08,87773.0,87769.0,0.0114026]
[1766908613078,0.05704,87775.0,87769.0,0.0114026]
[1766908613676,0.05704,87775.0,87759.0,0.01310212]
[1766908613875,0.05704,87775.0,87757.0,0.00011392]
[1766908614287,0.05704,87775.0,87769.0,0.0114026]
[1766908615787,0.05704,87775.0,87757.0,0.00011392]
[1766908616186,0.05704,87775.0,87769.0,0.0114026]
[1766908619779,0.05704,87775.0,87757.0,0.00011392]
[1766908620089,0.05704,87775.0,87769.0,0.0114026]
[1766908623082,0.05704,87775.0,87766.0,0.0114029]
[1766908623284,0.05704,87775.0,87766.0,0.01044783]
[1766908624792,0.02500773,87774.0,87766.0,0.01044783]
[1766908625092,0.02500773,87773.0,87766.0,0.01044783]
[1766908625294,0.05704,87775.0,87766.0,0.01044783]
[1766908625590,0.02500773,87774.0,87766.0,0.01044783]
[1766908625790,0.02500773,87773.0,87766.0,0.01044783]
[1766908625991,0.05704,87775.0,87766.0,0.01044783]
[1766908626191,0.02500773,87774.0,87766.0,0.01044783]
[1766908626395,0.02500773,87773.0,87766.0,0.01044783]
[1766908626586,0.05704,87775.0,87766.0,0.01044783]
[1766908626786,0.02500773,87774.0,87766.0,0.01044783]
[1766908626993,0.02500773,87773.0,87766.0,0.01044783]
[1766908627294,0.05704,87775.0,87766.0,0.01044783]
[1766908627601,0.0248928,87774.0,87766.0,0.01044783]
[1766908627784,0.0248928,87773.0,87766.0,0.01044783]
[1766908627985,0.05704,87775.0,87766.0,0.01044783]
[1766908628186,0.0248928,87774.0,87766.0,0.01044783]
[1766908628385,0.0248928,87773.0,87766.0,0.01044783]
[1766908628587,0.05704,87775.0,87766.0,0.01044783]
[1766908628890,0.02489281,87774.0,87766.0,0.01044783]
[1766908629089,0.02489281,87773.0,87766.0,0.01044783]
[1766908629281,0.05704,87775.0,87766.0,0.01044783]
[1766908629579,0.02489281,87774.0,87766.0,0.01044783]
[1766908629882,0.02489281,87773.0,87766.0,0.01044783]
[1766908630079,0.05704,87775.0,87766.0,0.01044783]
[1766908630293,0.02489282,87774.0,87766.0,0.01044783]
[1766908630494,0.02489282,87773.0,87766.0,0.01044783]
[1766908630693,0.05704,87775.0,87766.0,0.01044783]
[1766908630892,0.02489282,87774.0,87766.0,0.01044783]
[1766908631094,0.02489282,87773.0,87766.0,0.01044783]
[1766908631282,0.05704,87775.0,87766.0,0.01044783]
[1766908631585,0.02489282,87774.0,87766.0,0.01044783]
[1766908631785,0.02489282,87773.0,87766.0,0.01044783]
[1766908631982,0.05704,87775.0,87766.0,0.01044783]
[1766908632187,0.02489282,87774.0,87766.0,0.01044783]
[1766908632399,0.02489282,87773.0,87766.0,0.01044783]
[1766908632697,0.05704,87775.0,87766.0,0.01044783]
[1766908632897,0.0248929,87774.0,87766.0,0.01044783]
[1766908633084,0.0248929,87773.0,87766.0,0.01044783]
[1766908633289,0.05704,87775.0,87766.0,0.01044783]
[1766908633494,0.02489307,87774.0,87766.0,0.01044783]
[1766908633688,0.02489307,87773.0,87766.0,0.01044783]
[1766908633889,0.05704,87775.0,87766.0,0.01044783]
[1766908634090,0.02489307,87774.0,87768.0,0.0114027]
[1766908634289,0.02489307,87773.0,87768.0,0.0114027]
[1766908634490,0.05704,87775.0,87768.0,0.0114027]
[1766908634699,0.02489307,87774.0,87768.0,0.0114027]
[1766908634997,0.02489307,87773.0,87768.0,0.0114027]
[1766908635299,0.05704,87775.0,87768.0,0.0114027]
[1766908635504,0.02489307,87774.0,87768.0,0.0114027]
[1766908635799,0.02489307,87773.0,87768.0,0.0114027]
[1766908635994,0.05704,87775.0,87768.0,0.0114027]
[1766908636192,0.02489307,87774.0,87768.0,0.0114027]
[1766908636391,0.02489307,87773.0,87768.0,0.0114027]
[1766908636594,0.05704,87775.0,87768.0,0.0114027]
[1766908636794,0.02489307,87774.0,87768.0,0.0114027]
[1766908636995,0.02489307,87773.0,87768.0,0.0114027]
[1766908637201,0.05704,87775.0,87768.0,0.0114027]
[1766908637401,0.02489307,87774.0,87768.0,0.0114027]
[1766908637702,0.02489307,87773.0,87768.0,0.0114027]
[1766908637898,0.05704,87775.0,87768.0,0.0114027]
[1766908638101,0.02489307,87774.0,87768.0,0.0114027]
[1766908638301,0.02489307,87773.0,87768.0,0.0114027]
[1766908638501,0.05704,87775.0,87768.0,0.0114027]
[1766908638803,0.02489308,87774.0,87768.0,0.0114027]
[1766908639101,0.02489308,87773.0,87768.0,0.0114027]
[1766908639301,0.05704,87775.0,87768.0,0.0114027]
[1766908639601,0.02489308,87774.0,87768.0,0.0114027]
[1766908639802,0.02489308,87773.0,87768.0,0.0114027]
[1766908640004,0.05704,87775.0,87768.0,0.0114027]
[1766908640206,0.02489308,87774.0,87768.0,0.0114027]
[1766908640506,0.02489308,87773.0,87768.0,0.0114027]
[1766908640704,0.05704,87775.0,87768.0,0.0114027]
[1766908640906,0.02489308,87774.0,87768.0,0.0114027]
[1766908641206,0.02489308,87773.0,87768.0,0.0114027]
[1766908641409,0.05704,87775.0,87768.0,0.0114027]
[1766908641605,0.02489308,87774.0,87768.0,0.0114027]
[1766908641807,0.02489308,87773.0,87768.0,0.0114027]
[1766908642109,0.05704,87775.0,87768.0,0.0114027]
[1766908642303,0.02489308,87774.0,87768.0,0.0114027]
[1766908642504,0.02489308,87773.0,87768.0,0.0114027]